bitfinex/quotes_ETHUSD_20260113
["timestamp","ask_amount","ask_price","bid_price","bid_amount"]
[1768314288758,3.17625716,3148.4,3148.1,0.001]
[1768314289058,0.03176115,3148.6,3148.1,0.001]
[1768314289470,0.03176115,3148.6,3147.8,0.001]
[1768314290967,6.35223122,3148.5,3147.8,0.001]
[1768314291379,4.84603745,3148.4,3147.8,0.001]
[1768314291675,1.11982687,3148.3,3147.8,0.99470569]
[1768314292451,4.84603745,3148.1,3147.7,0.248]
[1768314292676,1.11982687,3148.3,3147.7,0.248]
[1768314292884,1.11982687,3148.3,3147.7,1.24170569]
[1768314293070,1.11982687,3148.3,3147.8,0.03176821]
[1768314293377,3.17621649,3148.4,3147.8,0.99370569]
[1768314293681,6.35243298,3148.4,3147.7,1.24170569]
[1768314294183,3.17621649,3148.4,3147.7,1.24170569]
[1768314294356,3.17621649,3148.4,3147.7,0.248]
[1768314295286,3.17621649,3148.4,3147.7,3.42489496]
[1768314296090,3.17621649,3148.4,3147.7,0.248]
[1768314296274,0.73082999,3148.3,3147.7,0.248]
[1768314297382,0.73082999,3148.3,3147.7,3.4249207]
[1768314297383,3.90915352,3148.3,3147.7,3.4249207]
[1768314298088,0.73282999,3148.3,3147.7,4.41862639]
[1768314298465,0.73282999,3148.3,3147.8,0.99370569]
[1768314298867,3.90916573,3148.3,3147.8,0.99370569]
[1768314299259,8.75520318,3148.3,3147.8,0.99370569]
[1768314300360,5.57886744,3148.3,3147.8,0.99370569]
[1768314300688,0.55788674,3148.2,3147.8,0.99370569]
[1768314301666,3.73431213,3148.2,3147.7,0.248]
[1768314302885,0.55788674,3148.2,3147.7,0.248]
[1768314303088,0.55788674,3148.2,3147.1,3.17750245]
[1768314303089,4.84603745,3148.0,3147.3,3.17729792]
[1768314303297,8.02268729,3148.0,3147.2,0.248]
[1768314303461,4.84603745,3148.0,3147.2,0.248]
[1768314303660,4.84603745,3148.0,3147.2,1.24170569]
[1768314303861,5.40392419,3148.2,3147.3,0.99370569]
[1768314304087,4.84603745,3148.2,3147.3,0.99370569]
[1768314304758,8.02246209,3148.2,3147.3,0.99370569]
[1768314305567,8.02246209,3148.2,3147.4,4.10302989]
[1768314305767,3.90915057,3148.3,3147.5,0.92580425]
[1768314305768,3.90918554,3148.3,3147.5,0.92580425]
[1768314305962,3.17835555,3148.3,3147.5,0.92580425]
[1768314306199,0.91848621,3148.0,3147.3,3.1772856]
[1768314306366,0.91848621,3148.0,3147.2,3.93707291]
[1768314306566,5.76452366,3147.5,3146.6,0.001]
[1768314306989,0.91848621,3147.5,3146.6,3.17896431]
[1768314307400,4.84922307,3147.2,3146.7,3.17792296]
[1768314307603,4.84922307,3147.2,3146.6,0.001]
[1768314308650,4.84922307,3147.0,3146.6,0.001]
[1768314308905,0.91848621,3147.2,3146.6,0.001]
[1768314308906,4.84922307,3147.2,3146.6,0.001]
[1768314309393,0.91848621,3147.1,3146.3,0.00081039]
[1768314309593,4.84922307,3146.7,3146.2,3.1762465]
[1768314310302,4.09619379,3147.0,3146.2,3.1762465]
[1768314310504,0.91848621,3146.9,3146.2,6.35468398]
[1768314311072,5.76770928,3146.8,3146.2,3.1762465]
[1768314311373,0.91848621,3146.7,3146.2,3.1762465]
[1768314311574,0.91848621,3146.7,3146.1,6.35706426]
[1768314311796,0.91848621,3146.7,3146.1,7.01767069]
[1768314312975,0.91848621,3146.9,3146.1,7.01767069]
[1768314314184,4.84922307,3147.0,3146.1,7.01767069]
[1768314314387,5.76770928,3147.0,3146.1,7.01767069]
[1768314314778,0.91848621,3146.9,3146.1,7.01767069]
[1768314315101,0.91848621,3146.7,3146.1,3.83913219]
[1768314315290,0.91848621,3146.5,3146.1,3.17852576]
[1768314315492,0.91848621,3146.5,3146.1,6.35706426]
[1768314316305,4.84922307,3146.8,3146.1,6.35706426]
[1768314316601,4.08799192,3147.3,3146.2,5.82963702]
[1768314316902,0.91064338,3147.1,3146.2,0.98041395]
[1768314317203,0.91064338,3147.1,3146.1,7.01767069]
[1768314317204,4.84922307,3146.8,3146.1,7.01767069]
[1768314317406,4.84922307,3146.8,3146.2,0.249]
[1768314317699,4.84922307,3146.6,3146.2,0.249]
[1768314318090,1.66962352,3146.4,3146.2,3.17842877]
[1768314318304,0.91064338,3146.5,3146.2,3.17842877]
[1768314318608,0.91064338,3146.5,3146.0,0.001]
[1768314318907,0.91064338,3146.5,3146.2,3.17842573]
[1768314319281,0.91064338,3146.5,3146.1,3.17853499]
[1768314319490,4.84922307,3146.6,3146.2,3.1784105]
[1768314319697,0.91064338,3147.0,3146.2,0.32111969]
[1768314319873,4.84922307,3146.9,3146.2,0.32111969]
[1768314320078,5.75986645,3146.9,3146.2,0.32111969]
[1768314320300,0.91064338,3146.8,3146.2,0.32111969]
[1768314321004,4.84922307,3146.9,3146.2,0.32111969]
[1768314321609,4.84922307,3146.7,3146.2,0.32111969]
[1768314321905,4.84922307,3146.5,3146.0,0.001]
[1768314322106,4.84922307,3146.3,3145.7,3.1798821]
[1768314322279,4.84922307,3146.1,3145.7,0.001]
[1768314322476,7.26652542,3146.7,3145.7,0.001]
[1768314322477,4.84922307,3146.2,3145.7,6.77492231]
[1768314322681,4.84922307,3146.4,3145.7,7.75533626]
[1768314322900,4.84922307,3146.4,3145.8,0.03178841]
[1768314323105,4.84922307,3146.4,3145.8,0.81050088]
[1768314323292,3.17779933,3146.9,3145.9,0.98041395]
[1768314323473,3.177656,3147.0,3146.0,4.88100946]
[1768314323704,3.17753593,3147.1,3146.2,6.35687496]
[1768314323901,8.026759,3147.1,3146.3,0.6605875]
[1768314324105,4.84922307,3147.1,3146.3,0.6605875]
[1768314324818,8.02676296,3147.1,3146.3,0.6605875]
[1768314325028,4.84922307,3146.9,3146.3,0.6605875]
[1768314325311,4.08818327,3147.1,3146.3,0.6605875]
[1768314325527,4.84922307,3146.5,3146.0,3.1785548]
[1768314325682,4.84922307,3146.5,3145.9,3.42768662]
[1768314325882,4.84922307,3146.3,3145.9,3.17868662]
[1768314326304,4.84922307,3146.8,3146.0,0.98041395]
[1768314326581,3.1777508,3146.9,3146.1,0.98041395]
[1768314326819,4.84922307,3146.8,3146.1,0.98041395]
[1768314326986,4.84922307,3146.8,3146.0,0.90969676]
[1768314327415,0.249,3147.0,3146.0,0.90969676]
[1768314327618,0.03176115,3146.9,3146.0,0.90969676]
[1768314327824,0.03176115,3146.9,3146.2,3.17843748]
[1768314328190,0.03176115,3146.9,3146.2,6.35687496]
[1768314328502,8.02669628,3147.2,3146.2,6.35687496]
[1768314328719,3.17747321,3147.2,3146.2,6.60587496]
[1768314328933,3.20923436,3147.2,3146.2,6.60587496]
[1768314329099,3.20923436,3147.2,3146.3,0.73325874]
[1768314329100,4.84922307,3147.1,3146.3,0.73325874]
[1768314329625,4.88098422,3147.1,3146.3,0.73325874]
[1768314329994,4.84922307,3146.9,3146.3,0.73325874]
[1768314330196,4.84922307,3146.5,3145.9,3.17867547]
[1768314330522,0.91064338,3146.6,3146.0,3.17862119]
[1768314330829,4.84922307,3146.7,3146.0,3.17862119]
[1768314331027,5.75986645,3146.9,3146.1,3.17853303]
[1768314331028,0.249,3146.8,3146.1,3.17853303]
[1768314332012,3.20969358,3146.7,3145.8,4.15922973]
[1768314332218,3.20969358,3146.7,3145.9,3.17874058]
[1768314332419,4.44933343,3146.7,3145.9,3.17874058]
[1768314332618,5.35997681,3146.7,3145.9,3.17874058]
[1768314332805,10.20919988,3146.7,3145.9,3.17874058]
[1768314333019,10.17743873,3146.7,3145.9,3.17874058]
[1768314333206,0.91064338,3146.6,3145.9,3.17874058]
[1768314333630,0.94240453,3146.6,3145.9,3.17874058]
[1768314334053,4.12044908,3146.6,3145.8,3.17884163]
[1768314334645,4.84922307,3146.5,3145.8,3.17884163]
[1768314334879,5.82987807,3146.5,3145.8,3.17884163]
[1768314335451,5.82987807,3146.3,3145.7,0.001]
[1768314335758,0.980655,3146.2,3145.7,0.001]
[1768314336318,4.15911041,3146.2,3145.7,0.001]
[1768314336657,3.17845541,3146.2,3145.7,0.001]
[1768314336948,4.29904907,3146.2,3145.7,0.001]
[1768314337118,1.12059366,3146.2,3145.7,0.001]
[1768314337318,4.84922307,3146.3,3145.7,0.001]
[1768314337936,10.35080499,3146.5,3145.7,0.001]
[1768314338104,9.00805013,3146.5,3145.7,0.001]
[1768314338304,3.17817206,3146.5,3145.7,0.001]
[1768314338639,8.02739513,3146.5,3145.7,0.001]
[1768314339335,3.18003595,3146.6,3145.7,3.17994268]
[1768314339537,0.73387013,3146.5,3145.7,3.17994268]
[1768314339708,0.002,3146.6,3145.8,0.92477676]
[1768314339908,0.002,3146.6,3146.0,0.92477676]
[1768314341445,0.002,3146.6,3145.7,6.60788536]
[1768314341446,0.002,3146.6,3146.2,0.92477676]
[1768314343257,0.002,3146.9,3146.6,0.92477676]
[1768314343462,0.002,3146.9,3146.2,7.28162841]
[1768314343755,0.002,3146.9,3146.3,0.72816284]
[1768314344359,0.002,3146.9,3146.3,1.6529396]
[1768314344564,0.002,3146.9,3146.4,0.92477676]
[1768314345469,5.15675552,3147.2,3146.6,0.92477676]
[1768314345619,5.15675552,3147.2,3146.8,0.92477676]
[1768314345815,1.97797702,3147.2,3146.8,0.92477676]
[1768314346015,0.00081039,3148.0,3146.8,0.92477676]
[1768314346016,3.42775593,3147.9,3146.8,0.92477676]
[1768314347134,0.002,3147.9,3146.8,0.92477676]
[1768314347564,0.002,3147.9,3147.0,0.92477676]
[1768314347770,0.002,3147.9,3147.2,0.92477676]
[1768314348064,0.002,3147.6,3147.2,0.92477676]
[1768314348222,0.982655,3147.9,3147.0,0.249]
[1768314349674,0.002,3147.9,3147.1,3.17752851]
[1768314349823,0.980655,3147.7,3146.7,0.72810456]
[1768314350022,0.980655,3147.5,3146.2,7.31741782]
[1768314350321,0.980655,3147.3,3146.4,3.17817552]
[1768314350752,0.980655,3147.3,3146.5,3.17812036]
[1768314351153,0.980655,3147.3,3146.4,3.17818882]
[1768314352160,3.2091887,3147.2,3146.3,3.17833645]
[1768314352324,3.62817307,3147.2,3146.3,3.17833645]
[1768314352523,3.62817307,3147.2,3146.3,6.3566729]
[1768314353959,3.62817307,3147.2,3146.3,4.10311321]
[1768314354569,3.2091887,3147.2,3146.3,4.10311321]
[1768314354865,0.03176115,3147.2,3146.3,7.28144966]
[1768314355021,3.17735998,3147.3,3146.4,0.92477676]
[1768314355470,3.17735998,3147.3,3146.5,0.9565581]
[1768314355676,3.17692283,3147.7,3146.5,0.9565581]
[1768314355879,0.249,3147.5,3146.5,0.9565581]
[1768314356178,3.42621767,3147.5,3146.6,4.10281019]
[1768314356326,7.58409034,3147.5,3146.6,3.17803343]
[1768314356527,0.980655,3147.4,3146.6,3.17803343]
[1768314356835,6.60343534,3147.5,3146.7,0.92477676]
[1768314358172,0.03176115,3147.4,3146.5,3.17810124]
[1768314358379,1.01241615,3147.4,3146.1,0.001]
[1768314358542,0.980655,3147.0,3146.1,0.001]
[1768314358766,1.26141615,3147.0,3146.1,0.001]
[1768314359657,0.28076115,3147.0,3146.1,3.17946822]
[1768314359866,0.249,3147.0,3146.1,3.17946822]
[1768314360072,0.249,3147.0,3146.7,0.001]
[1768314360673,3.17773046,3146.9,3146.7,0.001]
[1768314360955,3.86993754,3146.9,3146.7,0.001]
[1768314362989,3.20949161,3146.9,3146.7,0.001]
[1768314364501,6.38722207,3146.9,3146.2,0.92477676]
[1768314365200,6.38722207,3146.9,3146.1,0.001]
[1768314365400,3.20949161,3146.9,3146.1,3.17952414]
[1768314365998,6.38722207,3146.9,3146.1,0.001]
[1768314366300,7.70895313,3146.9,3146.1,0.001]
[1768314366497,8.58133628,3146.9,3146.1,0.001]
[1768314367187,0.9041443,3146.8,3146.1,0.001]
[1768314367389,0.9041443,3146.6,3146.1,0.001]
[1768314369385,4.08218721,3146.6,3146.1,0.001]
[1768314369584,0.249,3146.7,3146.1,0.001]
[1768314369775,0.28076115,3146.7,3146.1,0.001]
[1768314370506,0.03176115,3146.7,3146.1,0.95555081]
[1768314370870,0.03176115,3146.7,3146.1,0.001]
[1768314371270,0.67051361,3146.7,3146.1,0.001]
[1768314371472,3.84851489,3146.7,3146.1,0.001]
[1768314372205,3.84851489,3146.7,3146.4,0.001]
[1768314372206,7.02651617,3146.7,3146.4,0.001]
[1768314372512,3.81675374,3146.7,3146.4,0.001]
[1768314372707,3.84851489,3146.7,3146.4,0.001]
[1768314372907,0.70263775,3146.6,3146.4,0.001]
[1768314373111,3.20976243,3146.7,3146.4,0.001]
[1768314374304,0.03176115,3146.7,3146.4,0.001]
[1768314374508,0.249,3146.8,3146.4,0.001]
[1768314374824,0.249,3146.9,3146.4,0.001]
[1768314375401,6.3553648,3147.0,3146.4,0.001]
[1768314375705,6.35465318,3147.3,3146.4,0.97349788]
[1768314375873,0.249,3147.2,3146.4,0.97349788]
[1768314376072,0.28076115,3147.2,3146.4,0.97349788]
[1768314376311,0.249,3147.2,3146.4,0.97349788]
[1768314378605,3.17752851,3147.1,3146.4,4.15168464]
[1768314378807,3.17752851,3147.1,3146.4,4.88469415]
[1768314379216,3.17752851,3147.1,3146.5,0.97249788]
[1768314379510,3.20928966,3147.1,3146.5,0.97249788]
[1768314379817,3.17752851,3147.1,3146.5,0.97249788]
[1768314380890,3.17752851,3147.1,3146.4,0.73400951]
[1768314380891,0.03176115,3147.0,3146.4,0.73400951]
[1768314381111,0.03176115,3147.0,3146.4,0.001]
[1768314382080,0.96542465,3147.0,3146.4,0.001]
[1768314383033,4.14312829,3147.0,3146.4,0.001]
[1768314383992,4.14312829,3147.0,3146.5,0.001]
[1768314384456,0.002,3146.8,3146.5,0.001]
[1768314387192,0.41651283,3146.8,3146.4,0.001]
[1768314387397,1.38193748,3146.8,3146.4,0.001]
[1768314388118,1.1826635,3146.7,3146.1,0.001]
[1768314388321,0.03176115,3146.6,3146.1,0.001]
[1768314388519,0.96542465,3146.6,3146.1,0.001]
[1768314389238,6.35626886,3146.5,3146.1,0.001]
[1768314389403,0.73216935,3146.4,3146.1,0.001]
[1768314389945,0.9336635,3146.3,3146.1,0.001]
[1768314391386,0.9336635,3146.1,3145.7,0.001]
[1768314391501,4.85325184,3146.0,3145.4,0.001]
[1768314393050,7.53953846,3146.2,3145.4,0.001]
[1768314393236,4.66671651,3146.2,3145.4,0.97349788]
[1768314393553,3.42737908,3146.3,3145.5,0.97249788]
[1768314393703,3.42737908,3146.3,3145.7,0.97249788]
[1768314394917,6.60575816,3146.3,3145.7,0.97249788]
[1768314395508,0.03176115,3146.2,3145.7,0.97249788]
[1768314395843,1.18083827,3146.2,3145.7,0.97249788]
[1768314396233,1.14907712,3146.2,3145.7,0.97249788]
[1768314396406,1.14907712,3146.2,3145.5,0.90583687]
[1768314396603,2.17438501,3146.2,3145.4,3.18023849]
[1768314396818,2.14262386,3146.2,3145.4,3.18023849]
[1768314397032,2.17438501,3146.2,3145.4,0.001]
[1768314397245,0.99354674,3146.0,3145.4,0.001]
[1768314397420,3.17874058,3145.9,3145.4,0.001]
[1768314398037,4.17222607,3146.0,3145.4,0.001]
[1768314398426,3.17867933,3146.0,3145.4,0.001]
[1768314399930,3.17867933,3146.0,3145.4,0.90683687]
[1768314400927,4.01243058,3146.0,3145.3,3.17934222]
[1768314401124,4.01243058,3146.0,3145.3,4.08517909]
[1768314401767,4.01243058,3146.0,3145.4,0.90583687]
[1768314403170,7.19110991,3146.0,3145.4,0.90583687]
[1768314403351,0.71911099,3145.9,3145.4,0.90583687]
[1768314404753,0.71911099,3145.9,3145.2,0.90583687]
[1768314405373,3.17884163,3145.8,3145.2,0.90583687]
[1768314405676,3.1785385,3146.1,3145.3,0.93763033]
[1768314405982,3.21029965,3146.1,3145.4,0.90583687]
[1768314406342,6.38883815,3146.1,3145.4,0.90583687]
[1768314407179,0.249,3146.1,3145.6,0.90583687]
[1768314407676,3.17838743,3146.3,3145.6,0.90583687]
[1768314407875,3.17838743,3146.3,3145.7,0.90583687]
[1768314408172,3.17828785,3146.4,3145.7,0.90583687]
[1768314408375,3.42718665,3146.5,3145.7,0.90583687]
[1768314408876,3.17818665,3146.5,3145.7,0.90583687]
[1768314409083,3.17818665,3146.5,3145.9,0.90583687]
[1768314409282,0.002,3146.8,3146.1,0.90583687]
[1768314411286,0.002,3146.8,3146.3,0.90583687]
[1768314411653,0.002,3146.5,3146.3,0.90583687]
[1768314411854,0.002,3146.8,3146.3,0.90583687]
[1768314413896,0.002,3146.8,3146.0,0.90583687]
[1768314414106,0.002,3146.8,3146.1,1.63216867]
[1768314414466,0.002,3146.8,3146.2,0.90583687]
[1768314417204,0.002,3146.8,3146.2,4.08424627]
[1768314418710,0.002,3146.8,3146.3,0.90583687]
[1768314418905,0.03376115,3146.8,3146.1,4.8106918]
[1768314419072,0.03376115,3146.8,3146.1,4.08436]
[1768314419474,0.03376115,3146.8,3146.2,4.0842264]
[1768314419475,0.002,3146.8,3146.2,4.0842264]
[1768314419678,0.002,3146.8,3146.3,0.90583687]
[1768314420276,0.002,3146.8,3146.1,0.90583687]
[1768314420495,4.17338956,3146.8,3146.0,3.17858836]
[1768314420708,4.91167949,3146.8,3146.0,4.08442523]
[1768314420915,4.17338956,3146.8,3146.1,3.17851051]
[1768314421206,0.002,3146.8,3146.2,0.90583687]
[1768314421634,0.002,3146.8,3146.1,6.35704901]
[1768314421635,0.002,3146.8,3146.3,4.08417332]
[1768314421838,0.251,3146.8,3146.4,0.90583687]
[1768314422408,0.002,3146.8,3146.4,0.90583687]
[1768314422711,0.002,3146.8,3146.4,1.63209686]
[1768314422912,0.002,3146.8,3146.5,0.90583687]
[1768314424012,0.002,3146.8,3146.6,0.90583687]
[1768314424524,0.99554674,3147.1,3146.5,3.17812806]
[1768314424715,0.002,3147.1,3146.6,0.90583687]
[1768314425731,0.002,3147.1,3146.7,0.95931272]
[1768314425931,6.60311674,3147.6,3147.0,0.95931272]
[1768314426116,6.60311674,3147.6,3146.7,0.95931272]
[1768314426117,0.03176115,3147.5,3146.7,0.95931272]
[1768314427641,3.20897529,3147.5,3146.8,0.95931272]
[1768314427938,3.17721414,3147.5,3146.8,0.95931272]
[1768314429650,0.002,3147.9,3147.3,0.95931272]
[1768314429856,0.03376115,3147.9,3147.3,0.95931272]
[1768314430042,0.002,3147.9,3147.3,0.95931272]
[1768314431542,0.03376115,3147.9,3147.3,0.95931272]
[1768314431732,3.21050665,3147.9,3147.3,0.95931272]
[1768314431934,4.35923206,3147.9,3147.3,0.95931272]
[1768314432377,0.03376115,3147.9,3147.4,0.95931272]
[1768314432572,0.251,3147.9,3147.4,0.95931272]
[1768314433857,0.002,3147.9,3147.5,0.95931272]
[1768314435666,0.002,3147.9,3147.3,3.17727396]
[1768314435826,0.96051682,3147.8,3147.3,3.17727396]
[1768314436364,0.002,3147.9,3147.3,4.11177072]
[1768314436666,0.002,3147.9,3147.4,0.93449676]
[1768314436861,0.002,3147.9,3147.3,3.17727396]
[1768314436862,0.002,3147.6,3147.5,5.78291465]
[1768314437061,0.00081039,3148.0,3147.6,0.93449676]
[1768314437364,0.002,3148.1,3147.9,4.84841789]
[1768314438360,0.002,3148.1,3147.9,5.78291465]
[1768314441667,0.002,3148.1,3147.9,0.93449676]
[1768314443677,0.002,3148.1,3147.7,8.95978749]
[1768314444173,0.002,3148.1,3147.7,5.78291465]
[1768314444975,0.96051682,3147.9,3147.1,4.11201783]
[1768314445136,0.002,3148.1,3147.2,0.93449676]
[1768314445137,0.96251682,3148.1,3147.2,0.93449676]
[1768314445338,0.002,3148.3,3147.9,4.84841789]
[1768314445542,0.002,3148.3,3147.9,5.78291465]
[1768314446332,0.002,3148.3,3147.9,8.95961938]
[1768314446750,0.002,3148.3,3147.9,5.78291465]
[1768314447348,0.002,3148.3,3147.9,8.95962097]
[1768314448267,0.002,3148.3,3147.9,5.78291465]
[1768314448770,0.002,3148.3,3148.0,0.001]
[1768314451338,0.99427797,3148.3,3148.0,0.001]
[1768314453183,1.72914652,3148.3,3148.0,0.001]
[1768314453494,4.90548007,3148.3,3148.0,0.001]
[1768314453786,0.96051682,3148.1,3147.1,3.42145909]
[1768314453951,0.99227797,3148.1,3147.1,3.17245909]
[1768314454150,0.96051682,3147.9,3147.1,0.249]
[1768314454395,0.96051682,3147.9,3147.1,3.17747266]
[1768314454551,0.96051682,3147.9,3147.2,3.17742162]
[1768314454752,0.96051682,3147.9,3147.1,0.249]
[1768314454979,0.96051682,3147.9,3147.1,3.17751833]
[1768314455177,0.99793743,3147.8,3147.1,3.17751833]
[1768314455379,0.99793743,3147.7,3147.1,3.17751833]
[1768314455575,0.99793743,3147.7,3146.9,0.001]
[1768314455776,0.99793743,3147.7,3146.9,3.17868049]
[1768314457392,4.17496119,3147.6,3146.9,3.17868049]
[1768314458791,4.17496119,3147.6,3147.1,4.84841789]
[1768314458792,0.99793743,3147.6,3147.1,4.84841789]
[1768314458991,0.47587944,3147.8,3147.1,4.84841789]
[1768314458992,0.47587944,3147.8,3147.2,0.94665747]
[1768314459205,0.39016522,3147.7,3147.2,0.94665747]
[1768314459406,3.42577273,3147.9,3147.2,0.94665747]
[1768314459596,0.28076115,3147.9,3147.2,0.94665747]
[1768314459908,3.45749502,3147.9,3147.2,4.12404046]
[1768314460070,4.45543245,3147.9,3147.2,0.94665747]
[1768314460266,0.99793743,3147.7,3146.9,0.001]
[1768314460471,0.99993743,3147.4,3146.9,0.001]
[1768314462304,0.99993743,3147.4,3146.7,3.16293243]
[1768314462987,4.17719499,3147.4,3146.6,8.97305825]
[1768314463192,0.99793743,3147.3,3146.6,3.42698289]
[1768314463393,0.99793743,3147.3,3146.6,6.60501632]
[1768314463695,0.99793743,3147.3,3146.6,8.02640078]
[1768314463696,4.17529004,3147.3,3146.6,8.02640078]
[1768314463894,1.41564869,3147.3,3146.6,8.02640078]
[1768314464294,0.41771126,3147.3,3146.7,0.94665747]
[1768314465027,0.002,3147.4,3146.7,0.94665747]
[1768314465323,0.002,3147.4,3147.0,5.79507536]
[1768314465519,0.002,3147.7,3147.3,3.17732659]
[1768314465892,0.002,3147.7,3147.3,4.12398406]
[1768314466092,0.002,3147.7,3147.4,0.94665747]
[1768314466488,0.002,3147.7,3147.4,5.79507536]
[1768314466693,0.002,3147.7,3147.5,0.94665747]
[1768314466927,3.42735117,3148.3,3147.6,4.84841789]
[1768314467088,0.76035053,3148.2,3147.6,4.84841789]
[1768314467292,0.76035053,3148.2,3147.5,0.94665747]
[1768314467494,0.002,3148.3,3147.8,0.94665747]
[1768314469726,0.002,3148.3,3148.0,4.84841789]
[1768314469933,0.002,3148.3,3147.9,0.94665747]
[1768314470407,0.99993743,3148.3,3147.5,3.17707998]
[1768314470608,0.99993743,3148.3,3147.5,4.15619011]
[1768314470809,0.99993743,3148.3,3147.7,3.1768712]
[1768314471696,4.17627032,3148.3,3147.6,3.17702376]
[1768314472097,1.02969858,3148.2,3147.4,3.42615553]
[1768314472315,0.002,3148.4,3148.1,4.84841789]
[1768314472517,0.002,3148.4,3147.7,5.79507536]
[1768314472800,0.002,3148.0,3147.8,0.57950754]
[1768314472994,0.002,3148.4,3147.8,0.57950754]
[1768314473196,0.002,3148.3,3147.6,0.249]
[1768314473630,0.002,3148.3,3147.5,12.14931265]
[1768314473801,0.002,3148.3,3147.6,0.94665747]
[1768314474422,0.002,3148.3,3147.7,0.94665747]
[1768314475559,0.002,3149.0,3148.3,0.94665747]
[1768314475833,0.99793743,3148.9,3148.3,3.17631737]
[1768314478309,0.002,3149.0,3148.3,4.12297484]
[1768314478542,0.002,3149.0,3148.3,7.29929221]
[1768314479446,4.17555127,3149.0,3148.2,3.17640222]
[1768314480025,4.17555127,3149.0,3148.2,4.12305969]
[1768314480222,0.99793743,3148.9,3147.8,0.94665747]
[1768314480450,5.84635532,3147.9,3147.0,0.94665747]
[1768314480616,5.84635532,3147.5,3146.3,4.84922869]
[1768314480815,5.84635532,3147.3,3146.3,0.0008108]
[1768314481147,0.99793743,3147.9,3146.7,4.84841789]
[1768314481449,0.99793743,3147.9,3146.9,8.02607307]
[1768314481749,0.249,3147.8,3146.9,4.84841789]
[1768314481913,0.99793743,3147.8,3147.1,4.84841789]
[1768314482113,0.99793743,3147.8,3146.9,8.02614521]
[1768314482314,0.99793743,3147.8,3147.0,0.80261452]
[1768314482743,0.99793743,3147.8,3146.7,0.249]
[1768314483125,0.99793743,3147.8,3146.9,3.17771798]
[1768314484233,3.17692283,3147.7,3146.9,3.17771798]
[1768314484847,0.96569786,3147.6,3146.8,3.17780695]
[1768314485155,0.96569786,3147.6,3146.8,0.249]
[1768314485453,0.96569786,3147.4,3146.8,3.42679325]
[1768314485653,0.96569786,3147.6,3147.2,0.001]
[1768314486550,0.251,3148.0,3147.2,0.001]
[1768314486551,0.96569786,3147.9,3147.2,0.001]
[1768314487318,0.96569786,3147.9,3147.2,0.25]
[1768314488328,4.14247601,3147.9,3147.2,0.25]
[1768314489126,4.14247601,3147.9,3147.2,3.4274217]
[1768314489453,0.96569786,3147.9,3147.3,0.03177326]
[1768314489670,0.002,3148.0,3147.3,1.31573917]
[1768314490521,0.002,3148.0,3147.4,3.17722564]
[1768314491565,0.002,3148.0,3147.5,0.249]
[1768314491868,0.96769786,3148.0,3147.5,0.249]
[1768314492736,4.14435244,3148.0,3147.5,0.249]
[1768314493672,4.14435244,3148.0,3147.3,3.52319981]
[1768314493865,0.96569786,3147.9,3147.3,3.52319981]
[1768314494081,0.96569786,3147.9,3147.4,0.249]
[1768314494271,0.96569786,3147.9,3147.3,3.17728031]
[1768314494441,0.96569786,3147.9,3147.4,0.249]
[1768314494864,0.96569786,3147.8,3147.4,0.249]
[1768314495065,0.96569786,3147.8,3147.2,0.001]
[1768314495246,0.96569786,3147.8,3147.3,0.249]
[1768314495446,0.96569786,3147.8,3147.2,0.001]
[1768314495647,0.96569786,3147.8,3147.3,0.249]
[1768314496944,0.96569786,3147.8,3147.3,3.42629653]
[1768314497444,4.14252834,3147.8,3147.2,0.001]
[1768314497690,4.87464476,3147.8,3147.3,0.249]
[1768314497904,1.69781428,3147.8,3147.2,3.17840063]
[1768314498063,0.002,3148.3,3147.7,0.96022898]
[1768314498397,0.002,3148.3,3147.9,0.96022898]
[1768314499456,0.002,3148.3,3148.0,3.17662007]
[1768314500183,0.002,3148.3,3147.9,7.31362051]
[1768314500388,0.002,3148.3,3147.9,8.06988256]
[1768314500588,0.002,3148.3,3148.0,1.20922898]
[1768314500891,0.9068871,3148.8,3148.0,0.249]
[1768314501585,0.002,3149.0,3148.1,6.35303834]
[1768314501758,0.002,3149.0,3148.1,7.31326732]
[1768314501959,0.002,3149.0,3148.2,1.55861143]
[1768314502286,0.002,3149.0,3148.3,0.96022898]
[1768314503790,0.9088871,3149.0,3148.4,0.249]
[1768314504175,0.9088871,3149.0,3148.3,0.249]
[1768314504962,0.002,3149.0,3148.4,0.96022898]
[1768314505161,0.002,3149.0,3148.4,1.71641817]
[1768314505710,0.002,3149.0,3148.5,4.13634459]
[1768314505866,0.002,3149.0,3148.5,7.3124602]
[1768314506517,0.002,3149.0,3148.5,4.13634459]
[1768314507374,0.002,3149.0,3148.5,7.3124602]
[1768314507580,0.002,3149.0,3148.6,0.80686494]
[1768314508500,0.16506138,3151.0,3150.1,0.80022898]
[1768314508710,0.9076961,3152.4,3150.7,4.84725071]
[1768314508996,0.000809,3152.4,3151.2,0.96022898]
[1768314509208,0.000809,3152.4,3151.4,0.0127346]
[1768314509382,0.9068871,3152.1,3151.4,0.249]
[1768314510005,0.9068871,3152.1,3150.9,0.96022898]
[1768314510464,0.9068871,3152.1,3151.1,11.19424065]
[1768314510894,0.0221584,3152.3,3151.1,11.19424065]
[1768314510895,0.0221584,3152.3,3151.1,12.15446963]
[1768314511294,0.0221584,3152.3,3151.1,7.30721892]
[1768314511660,3.19445726,3152.3,3151.1,7.30721892]
[1768314512272,3.19445726,3152.3,3151.1,4.13372395]
[1768314512597,3.19445726,3152.3,3150.1,0.0127346]
[1768314512598,0.9068871,3152.0,3151.2,0.249]
[1768314512799,0.9068871,3152.0,3151.2,0.248]
[1768314513302,0.63674553,3152.2,3151.2,0.248]
[1768314513866,0.0221584,3152.3,3151.2,1.20822898]
[1768314514178,0.0221584,3152.3,3151.3,0.96022898]
[1768314514588,0.0221584,3152.3,3151.4,6.34638572]
[1768314514766,0.0221584,3152.3,3151.4,3.17319286]
[1768314515411,0.0221584,3152.3,3151.5,0.248]
[1768314515613,0.0221584,3152.3,3151.5,0.99828337]
[1768314515799,0.0221584,3152.3,3151.5,1.9067313]
[1768314515981,0.97098006,3153.2,3151.6,0.90844793]
[1768314516712,0.97098006,3153.1,3151.8,0.90844793]
[1768314517024,0.97098006,3153.1,3151.9,0.248]
[1768314517312,1.70236589,3153.0,3151.9,0.248]
[1768314517496,0.97098006,3152.9,3151.9,0.248]